fUSD/lending_fUSD_20250127
["ID","MTS","AMOUNT","RATE_DAILY","PERIOD"]
[350512614,1737937835970,-169.83,0.00010107,2]
[350512615,1737937835979,-173.61,0.00010137,2]
[350512616,1737937835988,-176.63,0.00010176,2]
[350512617,1737937835998,-242.15097745,0.00010178,2]
[350512618,1737937836007,-180.67,0.00010179,2]
[350512619,1737937836016,-162.73,0.00010182,2]
[350512620,1737937836034,-734.93,0.00010182,2]
[350512621,1737937836043,-21876.44107363,0.0001024,2]
[350512622,1737937836054,-1097.72946846,0.0001024,2]
[350512623,1737937836070,-371.61030537,0.0001024,2]
[350512675,1737937837619,1769.84,9.189e-05,2]
[350512676,1737937837632,-1363.83747749,0.0001024,2]
[350512677,1737937837711,-514.86435,0.0001024,2]
[350512678,1737937837766,-316.1496527,0.0001024,2]
[350512679,1737937837822,-6426.24281749,0.0001024,2]
[350512832,1737937839714,-7924.858816,0.0001024,2]
[350512839,1737937839776,-1295.52231344,0.0001024,2]
[350512869,1737937840044,-604.13993734,0.0001024,2]
[350512871,1737937840058,-6043.86832,0.0001024,2]
[350513095,1737937845651,-855.2326612,0.0001024,2]
[350513096,1737937845899,-518.42438963,0.0001024,2]
[350513119,1737938021003,201.97,0.00016658,30]
[350513127,1737938567527,928.13,9.482e-05,2]
[350513128,1737938651167,602.76,8.219e-05,2]
[350513129,1737938700042,5502.77,9.5e-05,2]
[350513130,1737938700070,10000.0,9.5e-05,2]
[350513131,1737938700095,4347.27,9.5e-05,2]
[350513132,1737938776429,170.94,9.497e-05,2]
[350513134,1737938860924,250.0,9.482e-05,2]
[350513135,1737938864940,222.0,0.00022,120]
[350513136,1737938871077,191.87,0.00016658,30]
[350513138,1737938986496,1152.42,9.469e-05,2]
[350513151,1737939032004,-1000.0,9.543e-05,2]
[350513152,1737939032015,-524.42,9.556e-05,2]
[350513153,1737939032024,-324.9,9.587e-05,2]
[350513154,1737939032035,-671.37,9.647e-05,2]
[350513155,1737939032045,-335.30615543,9.66e-05,2]
[350513156,1737939032058,-691.8036511,9.66e-05,2]
[350513157,1737939032113,-541.345,9.66e-05,2]
[350513158,1737939032125,-528.43519347,9.66e-05,2]
[350513159,1737939032136,-916.08,9.687e-05,2]
[350513160,1737939032146,-250.0,9.737e-05,2]
[350513161,1737939032157,-2000.0,9.769e-05,2]
[350513162,1737939032168,-177.33,9.863e-05,2]
[350513163,1737939032179,-571.0973016,9.884e-05,2]
[350513164,1737939032190,-200.0,9.884e-05,2]
[350513165,1737939032200,-1407.53,9.884e-05,2]
[350513166,1737939032210,-530.94296086,9.926e-05,2]
[350513167,1737939032228,-2025.51301739,9.937e-05,2]
[350513168,1737939032248,-1301.24185652,9.937e-05,2]
[350513169,1737939032262,-25700.0,9.937e-05,2]
[350513170,1737939036688,-1549.7770445,9.937e-05,2]
[350513171,1737939036699,-8168.46808159,9.937e-05,2]
[350513172,1737939036709,-322.31998294,0.00010037,2]
[350513173,1737939036721,-751.92164499,0.00010037,2]
[350513174,1737939036734,-169.2,0.00010071,2]
[350513175,1737939036743,-157.01,0.00010137,2]
[350513177,1737939036753,-150.0,0.00010139,2]
[350513179,1737939036762,-3185.16,0.0001014,2]
[350513181,1737939036771,-166.67,0.00010216,2]
[350513183,1737939036780,-3000.0,0.0001024,2]
[350513185,1737939036790,-897.35,0.00010282,2]
[350513186,1737939036800,-530.94296086,0.00010321,2]
[350513188,1737939036810,-702.85,0.0001044,2]
[350513212,1737939037027,-1903.80379298,0.00010447,2]
[350513214,1737939037037,-1903.80379299,0.00010447,2]
[350513216,1737939037047,-602.76,0.00010449,2]
[350513218,1737939037056,-430.87570697,0.00010471,2]
[350513220,1737939037066,-530.94296086,0.00010716,2]
[350513222,1737939037075,-1000.0,0.00010736,2]
[350513224,1737939037085,-180.67,0.00010739,2]
[350513226,1737939037095,-524.42,0.0001075,2]
[350513228,1737939037105,-430.87570697,0.00010793,2]
[350513229,1737939037115,-1310.8171,0.00010888,2]
[350513230,1737939037124,-1949.1501,0.00010888,2]
[350513231,1737939037141,-304.1398,0.0001089,2]
[350513232,1737939037151,-16553.8266,0.0001089,2]
[350513233,1737939037161,-500.0,0.000109,3]
[350513234,1737939037170,-182.12611365,0.000109,2]
[350513235,1737939037180,-667.5725755,0.000109,2]
[350513236,1737939037189,-184.41288244,0.00010957,2]
[350513237,1737939037198,-31735.40910155,0.00010957,2]
[350513238,1737939037207,-8967.21,0.00010959,2]
[350513239,1737939037216,-500.0,0.00010987,2]
[350513240,1737939037228,-544.88,0.00010987,2]
[350513241,1737939037239,-794.1,0.00010987,2]
[350513243,1737939037249,-500.0,0.00010987,2]
[350513244,1737939037259,-500.0,0.00010987,2]
[350513246,1737939037268,-500.0,0.00010987,2]
[350513248,1737939037278,-500.0,0.00010987,2]
[350513250,1737939037288,-500.0,0.00010987,2]
[350513252,1737939037297,-319.34663378,0.00010987,2]
[350513254,1737939037307,-500.0,0.00010987,2]
[350513256,1737939037317,-500.0,0.00010987,2]
[350513258,1737939037327,-704.61,0.00010987,2]
[350513260,1737939037337,-500.0,0.00010987,2]
[350513262,1737939037347,-500.0,0.00010987,2]
[350513264,1737939037356,-500.0,0.00010987,2]
[350513266,1737939037366,-500.0,0.00010987,2]
[350513268,1737939037375,-500.0,0.00010987,2]
[350513270,1737939037385,-721.05,0.00010987,2]
[350513272,1737939037394,-500.0,0.00010987,2]
[350513274,1737939037403,-500.0,0.00010987,2]
[350513276,1737939037413,-500.0,0.00010987,2]
[350513278,1737939037422,-500.0,0.00010987,2]
[350513280,1737939037432,-500.0,0.00010987,2]
[350513282,1737939037442,-500.0,0.00010987,2]
[350513284,1737939037452,-500.0,0.00010987,2]
[350513286,1737939037463,-500.0,0.00010987,2]
[350513288,1737939037475,-500.0,0.00010987,2]
[350513290,1737939037484,-530.7,0.00010987,2]
[350513292,1737939037494,-500.0,0.00010987,2]
[350513294,1737939037504,-500.0,0.00010987,2]
[350513296,1737939037513,-500.0,0.00010987,2]
[350513298,1737939037523,-500.0,0.00010987,2]
[350513300,1737939037534,-500.0,0.00010987,2]
[350513302,1737939037544,-500.0,0.00010987,2]
[350513304,1737939037553,-500.0,0.00010987,2]
[350513306,1737939037562,-500.0,0.00010987,2]
[350513308,1737939037571,-500.0,0.00010987,2]
[350513310,1737939037580,-500.0,0.00010987,2]
[350513312,1737939037590,-500.0,0.00010987,2]
[350513315,1737939037600,-500.0,0.00010987,2]
[350513317,1737939037609,-500.0,0.00010987,2]
[350513319,1737939037619,-500.0,0.00010987,2]
[350513321,1737939037630,-500.0,0.00010987,2]
[350513323,1737939037639,-245.79482997,0.00010988,2]
[350513325,1737939037648,-503.13798847,0.00010988,2]
[350513327,1737939037658,-500.0,0.00010988,2]
[350513329,1737939037667,-500.0,0.00010988,2]
[350513331,1737939037677,-500.0,0.00010988,2]
[350513333,1737939037687,-500.0,0.00010988,2]
[350513335,1737939037697,-500.0,0.00010988,2]
[350513337,1737939037706,-508.28078217,0.00010988,2]
[350513339,1737939037716,-500.0,0.00010988,2]
[350513341,1737939037728,-619.83825175,0.00010988,2]
[350513344,1737939037739,-214.010247,0.00010988,2]
[350513348,1737939037748,-500.0,0.00010988,2]
[350513351,1737939037758,-500.0,0.00010988,2]
[350513353,1737939037767,-500.0,0.00010988,2]
[350513355,1737939037777,-500.0,0.00010988,2]
[350513357,1737939037786,-506.07451776,0.00010988,2]
[350513359,1737939037796,-500.0,0.00010988,2]
[350513361,1737939037808,-275.64288051,0.00010988,2]
[350513364,1737939037818,-500.0,0.00010988,2]
[350513366,1737939037828,-500.0,0.00010988,2]
[350513368,1737939037838,-500.0,0.00010988,2]
[350513370,1737939037847,-500.0,0.00010988,2]
[350513371,1737939037857,-500.0,0.00010988,2]
[350513373,1737939037866,-500.0,0.00010988,2]
[350513375,1737939037876,-500.0,0.00010988,2]
[350513377,1737939037886,-500.0,0.00010988,2]
[350513380,1737939037896,-500.0,0.00010988,2]
[350513382,1737939037907,-500.0,0.00010988,2]
[350513383,1737939037917,-538.90454238,0.00010988,2]
[350513385,1737939037927,-500.0,0.00010988,2]
[350513387,1737939037937,-500.0,0.00010988,2]
[350513389,1737939037946,-500.0,0.00010988,2]
[350513391,1737939037956,-439.94973773,0.00010988,2]
[350513393,1737939037965,-500.0,0.00010988,2]
[350513395,1737939037977,-500.0,0.00010988,2]
[350513397,1737939037987,-500.0,0.00010988,2]
[350513399,1737939037996,-540.27,0.00010988,2]
[350513401,1737939038006,-500.0,0.00010988,2]
[350513403,1737939038015,-503.82995657,0.00010988,2]
[350513405,1737939038025,-500.0,0.00010988,2]
[350513407,1737939038035,-500.0,0.00010988,2]
[350513409,1737939038044,-500.0,0.00010988,2]
[350513411,1737939038054,-500.0,0.00010988,2]
[350513413,1737939038064,-284.314734,0.00010988,2]
[350513415,1737939038073,-305.15357448,0.00010988,2]
[350513417,1737939038082,-500.0,0.00010988,2]
[350513419,1737939038091,-500.0,0.00010988,2]
[350513421,1737939038101,-682.52,0.00010988,2]
[350513423,1737939038110,-500.0,0.00010988,2]
[350513425,1737939038119,-500.0,0.00010988,2]
[350513427,1737939038128,-161.357966,0.00010988,2]
[350513429,1737939038137,-500.0,0.00010988,2]
[350513431,1737939038147,-904.54,0.00010988,2]
[350513433,1737939038156,-500.0,0.00010988,2]
[350513435,1737939038166,-500.0,0.00010988,2]
[350513437,1737939038176,-500.0,0.00010988,2]
[350513439,1737939038186,-500.0,0.00010988,2]
[350513441,1737939038196,-648.64,0.00010988,2]
[350513443,1737939038206,-500.0,0.00010988,2]
[350513445,1737939038216,-500.0,0.00010988,2]
[350513447,1737939038226,-500.0,0.00010988,2]
[350513449,1737939038236,-500.0,0.00010988,2]
[350513451,1737939038245,-500.0,0.00010988,2]
[350513453,1737939038255,-500.0,0.00010988,2]
[350513455,1737939038264,-500.0,0.00010988,2]
[350513456,1737939038274,-562.67,0.00010988,2]
[350513458,1737939038284,-500.0,0.00010988,2]
[350513460,1737939038293,-500.0,0.00010988,2]
[350513462,1737939038302,-500.0,0.00010988,2]
[350513464,1737939038312,-500.0,0.00010988,2]
[350513466,1737939038321,-500.0,0.00010988,2]
[350513468,1737939038330,-500.0,0.00010988,2]
[350513470,1737939038339,-500.0,0.00010988,2]
[350513472,1737939038349,-500.0,0.00010988,2]
[350513474,1737939038358,-500.0,0.00010988,2]
[350513476,1737939038369,-500.0,0.00010988,2]
[350513478,1737939038378,-500.0,0.00010988,2]
[350513480,1737939038387,-798.73,0.00010988,2]
[350513482,1737939038397,-500.0,0.00010988,2]
[350513484,1737939038406,-500.0,0.00010988,2]
[350513486,1737939038416,-500.0,0.00010988,2]
[350513488,1737939038425,-500.0,0.00010988,2]
[350513490,1737939038434,-500.0,0.00010988,2]
[350513492,1737939038444,-1067.39,0.00010988,2]
[350513494,1737939038455,-500.0,0.00010988,2]
[350513496,1737939038465,-500.0,0.00010988,2]
[350513498,1737939038476,-502.63357929,0.00010988,2]
[350513500,1737939038486,-500.0,0.00010988,2]
[350513502,1737939038498,-500.0,0.00010988,2]
[350513504,1737939038507,-500.0,0.00010988,2]
[350513506,1737939038516,-211.39332049,0.00010988,2]
[350513508,1737939038525,-500.0,0.00010988,2]
[350513510,1737939038537,-500.0,0.00010988,2]
[350513512,1737939038547,-500.0,0.00010988,2]
[350513514,1737939038555,-500.0,0.00010988,2]
[350513516,1737939038565,-500.0,0.00010988,2]
[350513518,1737939038573,-500.0,0.00010988,2]
[350513520,1737939038582,-500.0,0.00010988,2]
[350513522,1737939038592,-500.0,0.00010988,2]
[350513524,1737939038601,-500.0,0.00010988,2]
[350513526,1737939038611,-500.0,0.00010988,2]
[350513527,1737939038620,-500.0,0.00010988,2]
[350513529,1737939038629,-508.22363121,0.00010988,2]
[350513531,1737939038639,-500.0,0.00010988,2]
[350513533,1737939038649,-500.0,0.00010988,2]
[350513536,1737939038658,-500.0,0.00010988,2]
[350513537,1737939038668,-500.0,0.00010988,2]
[350513540,1737939038678,-500.0,0.00010988,2]
[350513542,1737939038687,-504.36495375,0.00010988,2]
[350513543,1737939038696,-504.21320452,0.00010988,2]
[350513545,1737939038705,-500.0,0.00010988,2]
[350513547,1737939038715,-500.0,0.00010988,2]
[350513549,1737939038724,-500.0,0.00010988,2]
[350513551,1737939038734,-500.0,0.00010988,2]
[350513553,1737939038743,-500.0,0.00010988,2]
[350513555,1737939038753,-500.0,0.00010988,2]
[350513557,1737939038762,-509.50403772,0.00010988,2]
[350513559,1737939038772,-515.75968822,0.00010988,2]
[350513561,1737939038782,-500.0,0.00010988,2]
[350513563,1737939038791,-500.0,0.00010988,2]
[350513565,1737939038803,-556.66641326,0.00010988,2]
[350513567,1737939038812,-502.66325172,0.00010988,2]
[350513569,1737939038822,-500.0,0.00010988,2]
[350513571,1737939038831,-503.21581185,0.00010988,2]
[350513573,1737939038841,-500.0,0.00010988,2]
[350513575,1737939038850,-419.03340695,0.00010988,2]
[350513577,1737939038860,-500.0,0.00010988,2]
[350513579,1737939038869,-500.0,0.00010988,2]
[350513581,1737939038878,-500.0,0.00010988,2]
[350513583,1737939038887,-500.0,0.00010988,2]
[350513585,1737939038897,-500.0,0.00010988,2]
[350513587,1737939038907,-500.0,0.00010988,2]
[350513589,1737939038917,-857.26,0.00010988,2]
[350513591,1737939038927,-500.0,0.00010988,2]
[350513593,1737939038936,-387.80971648,0.00010988,2]
[350513595,1737939038946,-500.0,0.00010988,2]
[350513597,1737939038954,-500.0,0.00010988,2]
[350513599,1737939038963,-500.0,0.00010988,2]
[350513601,1737939038974,-532.73,0.00010988,2]
[350513603,1737939038984,-500.0,0.00010988,2]
[350513605,1737939038994,-500.0,0.00010988,2]
[350513607,1737939039003,-500.0,0.00010988,2]
[350513609,1737939039013,-500.0,0.00010988,2]
[350513611,1737939039022,-524.10212941,0.00010988,2]
[350513613,1737939039031,-500.0,0.00010988,2]
[350513615,1737939039041,-500.0,0.00010988,2]
[350513618,1737939039052,-500.0,0.00010988,2]
[350513619,1737939039062,-156.30572689,0.00010988,2]
[350513621,1737939039071,-500.0,0.00010988,2]
[350513623,1737939039080,-500.0,0.00010988,2]
[350513625,1737939039089,-501.55883974,0.00010989,2]
[350513627,1737939039099,-500.0,0.00010989,2]
[350513629,1737939039108,-502.38346633,0.00010989,2]
[350513631,1737939039117,-500.0,0.00010989,2]
[350513633,1737939039127,-500.0,0.00010989,2]
[350513635,1737939039136,-500.0,0.00010989,2]
[350513637,1737939039145,-500.0,0.00010989,2]
[350513639,1737939039155,-500.0,0.00010989,2]
[350513641,1737939039164,-500.0,0.00010989,2]
[350513643,1737939039174,-500.0,0.00010989,2]
[350513645,1737939039183,-500.0,0.00010989,2]
[350513647,1737939039193,-501.26898816,0.00010989,2]
[350513649,1737939039203,-500.0,0.00010989,2]
[350513651,1737939039213,-514.32288843,0.00010989,2]
[350513653,1737939039223,-500.0,0.00010989,2]
[350513655,1737939039237,-502.29853815,0.00010989,2]
[350513658,1737939039247,-500.0,0.00010989,2]
[350513659,1737939039257,-501.32955062,0.00010989,2]
[350513661,1737939039267,-500.0,0.00010989,2]
[350513664,1737939039276,-500.0,0.00010989,2]
[350513665,1737939039286,-500.0,0.00010989,2]
[350513668,1737939039296,-500.0,0.00010989,2]
[350513670,1737939039306,-500.0,0.00010989,2]
[350513671,1737939039315,-400.9077377,0.00010989,2]
[350513674,1737939039325,-500.0,0.00010989,2]
[350513676,1737939039335,-500.0,0.00010989,2]
[350513678,1737939039344,-500.0,0.00010989,2]
[350513679,1737939039353,-500.0,0.00010989,2]
[350513682,1737939039362,-304.19234137,0.00010989,2]
[350513684,1737939039372,-500.0,0.00010989,2]
[350513685,1737939039381,-500.0,0.00010989,2]
[350513687,1737939039390,-500.0,0.00010989,2]
[350513689,1737939039399,-500.0,0.00010989,2]
[350513691,1737939039409,-500.0,0.00010989,2]
[350513693,1737939039418,-622.4047729,0.00010989,2]
[350513695,1737939039429,-500.0,0.00010989,2]
[350513697,1737939039438,-500.0,0.00010989,2]
[350513699,1737939039453,-500.0,0.00010989,2]
[350513701,1737939039462,-500.0,0.00010989,2]
[350513703,1737939039472,-500.0,0.00010989,2]
[350513705,1737939039483,-500.0,0.00010989,2]
[350513707,1737939039493,-500.0,0.00010989,2]
[350513709,1737939039503,-500.0,0.00010989,2]
[350513711,1737939039513,-500.0,0.00010989,2]
[350513714,1737939039523,-500.0,0.00010989,2]
[350513716,1737939039534,-500.0,0.00010989,2]
[350513718,1737939039543,-500.0,0.00010989,2]
[350513720,1737939039554,-500.0,0.00010989,2]
[350513722,1737939039564,-500.0,0.00010989,2]
[350513724,1737939039573,-500.0,0.00010989,2]
[350513726,1737939039582,-500.0,0.00010989,2]
[350513728,1737939039592,-500.0,0.00010989,2]
[350513730,1737939039602,-500.0,0.00010989,2]
[350513732,1737939039612,-500.0,0.00010989,2]
[350513734,1737939039623,-500.0,0.00010989,2]
[350513736,1737939039633,-500.0,0.00010989,2]
[350513738,1737939039643,-500.0,0.00010989,2]
[350513740,1737939039652,-500.0,0.00010989,2]
[350513742,1737939039662,-500.0,0.00010989,2]
[350513744,1737939039672,-500.0,0.00010989,2]
[350513746,1737939039682,-500.0,0.00010989,2]
[350513748,1737939039691,-500.0,0.00010989,2]
[350513749,1737939039700,-506.09138236,0.00010989,2]
[350513751,1737939039709,-500.0,0.00010989,2]
[350513753,1737939039718,-500.0,0.00010989,2]
[350513755,1737939039730,-500.0,0.00010989,2]
[350513759,1737939039740,-502.83809765,0.00010989,2]
[350513762,1737939039750,-500.0,0.00010989,2]
[350513764,1737939039759,-274.81590794,0.00010989,2]
[350513765,1737939039768,-500.0,0.00010989,2]
[350513768,1737939039778,-500.0,0.00010989,2]
[350513771,1737939039788,-500.0,0.00010989,2]
[350513773,1737939039798,-500.0,0.00010989,2]
[350513776,1737939039807,-500.0,0.00010989,2]
[350513779,1737939039816,-500.0,0.00010989,2]
[350513781,1737939039826,-500.0,0.00010989,2]
[350513783,1737939039835,-500.0,0.00010989,2]
[350513786,1737939039845,-500.0,0.00010989,2]
[350513789,1737939039854,-500.0,0.00010989,2]
[350513792,1737939039864,-500.0,0.00010989,2]
[350513795,1737939039874,-500.0,0.00010989,2]
[350513798,1737939039883,-500.0,0.00010989,2]
[350513801,1737939039893,-500.0,0.00010989,2]
[350513804,1737939039902,-500.0,0.00010989,2]
[350513807,1737939039912,-500.0,0.00010989,2]
[350513810,1737939039922,-500.0,0.00010989,2]
[350513813,1737939039932,-500.0,0.00010989,2]
[350513816,1737939039942,-500.0,0.00010989,2]
[350513819,1737939039951,-500.0,0.00010989,2]
[350513822,1737939039960,-500.0,0.00010989,2]
[350513825,1737939039969,-505.40641816,0.00010989,2]
[350513828,1737939039982,-500.0,0.00010989,2]
[350513831,1737939039991,-504.47660298,0.00010989,2]
[350513834,1737939040001,-500.0,0.00010989,2]
[350513837,1737939040012,-500.0,0.00010989,2]
[350513840,1737939040021,-500.0,0.00010989,2]
[350513843,1737939040031,-500.0,0.00010989,2]
[350513846,1737939040041,-639.0,0.00010989,2]
[350513849,1737939040050,-500.0,0.00010989,2]
[350513852,1737939040060,-500.0,0.00010989,2]
[350513854,1737939040069,-500.0,0.00010989,2]
[350513856,1737939040078,-500.0,0.00010989,2]
[350513858,1737939040087,-503.8154052,0.00010989,2]
[350513860,1737939040097,-500.0,0.00010989,2]
[350513862,1737939040105,-500.0,0.00010989,2]
[350513864,1737939040114,-500.0,0.00010989,2]
[350513866,1737939040123,-500.0,0.00010989,2]
[350513868,1737939040134,-500.0,0.00010989,2]
[350513870,1737939040143,-1216.27,0.00010989,2]
[350513872,1737939040152,-500.0,0.00010989,2]
[350513874,1737939040161,-577.0049201,0.00010989,2]
[350513876,1737939040171,-500.0,0.00010989,2]
[350513879,1737939040180,-500.0,0.00010989,2]
[350513881,1737939040189,-500.0,0.00010989,2]
[350513884,1737939040199,-500.0,0.00010989,2]
[350513887,1737939040208,-500.0,0.00010989,2]
[350513890,1737939040218,-500.0,0.00010989,2]
[350513894,1737939040228,-500.0,0.00010989,2]
[350513897,1737939040238,-500.0,0.00010989,2]
[350513900,1737939040247,-500.0,0.00010989,2]
[350513903,1737939040257,-194.26,0.00010989,2]
[350513905,1737939040266,-500.0,0.00010989,2]
[350513908,1737939040276,-500.0,0.00010989,2]
[350513911,1737939040285,-682.67,0.00010989,2]
[350513914,1737939040295,-500.0,0.00010989,2]
[350513917,1737939040304,-500.0,0.00010989,2]
[350513920,1737939040314,-500.0,0.00010989,2]
[350513923,1737939040323,-500.0,0.00010989,2]
[350513926,1737939040332,-500.0,0.00010989,2]
[350513929,1737939040342,-500.0,0.00010989,2]
[350513931,1737939040352,-500.0,0.00010989,2]
[350513933,1737939040362,-500.0,0.00010989,2]
[350513935,1737939040371,-500.0,0.00010989,2]
[350513937,1737939040381,-500.0,0.00010989,2]
[350513939,1737939040390,-500.0,0.00010989,2]
[350513941,1737939040400,-500.0,0.00010989,2]
[350513943,1737939040409,-500.0,0.00010989,2]
[350513945,1737939040420,-500.0,0.00010989,2]
[350513947,1737939040430,-500.0,0.00010989,2]
[350513949,1737939040440,-500.0,0.00010989,2]
[350513951,1737939040450,-500.0,0.00010989,2]
[350513952,1737939040463,-500.0,0.00010989,2]
[350513954,1737939040473,-500.0,0.00010989,2]
[350513956,1737939040485,-500.0,0.00010989,2]
[350513959,1737939040494,-500.0,0.00010989,2]
[350513960,1737939040506,-500.0,0.00010989,2]
[350513962,1737939040516,-500.0,0.00010989,2]
[350513964,1737939040526,-500.0,0.00010989,2]
[350513966,1737939040537,-500.0,0.00010989,2]
[350513969,1737939040547,-500.0,0.00010989,2]
[350513970,1737939040556,-500.0,0.00010989,2]
[350513972,1737939040565,-500.0,0.00010989,2]
[350513974,1737939040575,-500.0,0.00010989,2]
[350513976,1737939040585,-500.0,0.00010989,2]
[350513978,1737939040594,-687.73,0.00010989,2]
[350513980,1737939040603,-500.0,0.00010989,2]
[350513982,1737939040612,-500.0,0.00010989,2]
[350513984,1737939040622,-1001.4,0.00010989,2]
[350513987,1737939040632,-500.0,0.00010989,2]
[350513988,1737939040642,-500.0,0.00010989,2]
[350513990,1737939040654,-500.0,0.00010989,2]
[350513992,1737939040665,-500.0,0.00010989,2]
[350513994,1737939040675,-544.88,0.00010989,2]
[350513996,1737939040684,-500.0,0.00010989,2]
[350513999,1737939040694,-500.0,0.00010989,2]
[350514000,1737939040703,-500.0,0.00010989,2]
[350514002,1737939040713,-500.0,0.00010989,2]
[350514022,1737939040894,-794.1,0.00010989,2]
[350514024,1737939040904,-500.0,0.00010989,2]
[350514027,1737939040914,-500.0,0.00010989,2]
[350514029,1737939040924,-500.0,0.00010989,2]
[350514030,1737939040934,-500.0,0.00010989,2]
[350514033,1737939040944,-500.0,0.00010989,2]
[350514034,1737939040953,-500.0,0.00010989,2]
[350514036,1737939040963,-500.0,0.00010989,2]
[350514038,1737939040973,-500.0,0.00010989,2]
[350514041,1737939040986,-500.0,0.00010989,2]
[350514042,1737939040996,-500.0,0.00010989,2]
[350514044,1737939041006,-500.0,0.00010989,2]
[350514046,1737939041016,-500.0,0.00010989,2]
[350514048,1737939041026,-500.0,0.00010989,2]
[350514050,1737939041035,-500.0,0.00010989,2]
[350514052,1737939041045,-500.0,0.00010989,2]
[350514055,1737939041055,-500.0,0.00010989,2]
[350514057,1737939041065,-500.0,0.00010989,2]
[350514059,1737939041075,-500.0,0.00010989,2]
[350514061,1737939041084,-500.0,0.00010989,2]
[350514063,1737939041093,-704.61,0.00010989,2]
[350514065,1737939041103,-500.0,0.00010989,2]
[350514067,1737939041112,-500.0,0.00010989,2]
[350514069,1737939041122,-500.0,0.00010989,2]
[350514071,1737939041131,-500.0,0.00010989,2]
[350514072,1737939041140,-500.0,0.00010989,2]
[350514074,1737939041150,-500.0,0.00010989,2]
[350514077,1737939041159,-500.0,0.00010989,2]
[350514078,1737939041168,-500.0,0.00010989,2]
[350514081,1737939041178,-500.0,0.00010989,2]
[350514082,1737939041188,-1000.0,0.00010989,2]
[350514084,1737939041198,-721.05,0.00010989,2]
[350514087,1737939041208,-500.0,0.00010989,2]
[350514088,1737939041218,-500.0,0.00010989,2]
[350514090,1737939041231,-500.0,0.00010989,2]
[350514092,1737939041241,-500.0,0.00010989,2]
[350514094,1737939041251,-500.0,0.00010989,2]
[350514097,1737939041261,-500.0,0.00010989,2]
[350514099,1737939041270,-500.0,0.00010989,2]
[350514100,1737939041280,-500.0,0.00010989,2]
[350514102,1737939041290,-500.0,0.00010989,2]
[350514105,1737939041302,-500.0,0.00010989,2]
[350514106,1737939041314,-508.28079457,0.00010989,2]
[350514109,1737939041324,-500.0,0.00010989,2]
[350514111,1737939041333,-500.0,0.00010989,2]
[350514112,1737939041343,-500.0,0.00010989,2]
[350514114,1737939041352,-500.0,0.00010989,2]
[350514116,1737939041361,-500.0,0.00010989,2]
[350514118,1737939041370,-500.0,0.00010989,2]
[350514121,1737939041379,-500.0,0.00010989,2]
[350514122,1737939041389,-500.0,0.00010989,2]
[350514125,1737939041399,-500.0,0.00010989,2]
[350514127,1737939041408,-500.0,0.00010989,2]
[350514129,1737939041417,-500.0,0.00010989,2]
[350514131,1737939041427,-500.0,0.00010989,2]
[350514133,1737939041437,-530.7,0.00010989,2]
[350514135,1737939041450,-500.0,0.00010989,2]